bitfinex-derivatives/quotes_BTCF0:USTF0_20250803
["timestamp","ask_amount","ask_price","bid_price","bid_amount"]
[1754250463318,0.6905427,114500.0,114490.0,0.392153]
[1754250463519,1.18559177,114500.0,114490.0,0.392153]
[1754250464609,0.78112037,114500.0,114490.0,0.392153]
[1754250464811,0.1987177,114500.0,114490.0,0.392153]
[1754250465119,0.5595177,114500.0,114490.0,0.393153]
[1754250465613,0.5595177,114500.0,114490.0,0.21846]
[1754250465828,0.5595177,114500.0,114490.0,0.393153]
[1754250469118,0.5595177,114500.0,114490.0,0.41244031]
[1754250472223,0.5595177,114500.0,114490.0,0.393153]
[1754250473319,0.1987177,114500.0,114490.0,0.393153]
[1754250474323,0.5595177,114500.0,114490.0,0.393153]
[1754250477831,0.5595177,114500.0,114490.0,0.660353]
[1754250478636,0.5595177,114500.0,114490.0,0.927233]
[1754250478839,1.09823937,114500.0,114490.0,0.65856]
[1754250479032,1.11610937,114500.0,114490.0,0.65856]
[1754250479232,1.11610937,114500.0,114490.0,0.75254]
[1754250479832,1.11610937,114500.0,114490.0,0.48566]
[1754250480040,1.11610937,114500.0,114490.0,0.30477]
[1754250481338,0.5773877,114500.0,114490.0,0.566373]
[1754250481537,1.11610937,114500.0,114490.0,0.660353]
[1754250482238,1.11610937,114500.0,114490.0,0.48566]
[1754250483643,1.11610937,114500.0,114490.0,0.21846]
[1754250488454,1.11610937,114500.0,114490.0,0.001]
[1754250488849,1.11610937,114500.0,114490.0,0.03757]
[1754250489554,1.11610937,114500.0,114490.0,0.03657]
[1754250498160,0.5773877,114500.0,114490.0,0.391143]
[1754250498362,1.11610937,114500.0,114490.0,0.391143]
[1754250500460,1.11610937,114500.0,114490.0,0.21645]
[1754250500767,1.11610937,114500.0,114490.0,0.12161]
[1754250505155,0.5773877,114500.0,114490.0,0.3911428]
[1754250505468,1.11610937,114500.0,114490.0,0.3911428]
[1754250506970,1.11610937,114500.0,114490.0,0.21645]
[1754250508374,1.11610937,114500.0,114490.0,0.3911428]
[1754250508766,0.5595177,114500.0,114490.0,0.3911428]
[1754250509168,0.38484,114500.0,114490.0,0.92986447]
[1754250509671,0.5595176,114500.0,114490.0,0.92986447]
[1754250509870,0.5595176,114500.0,114490.0,0.3911428]
[1754250512868,0.5354776,114500.0,114490.0,0.92986447]
[1754250513068,0.3608,114500.0,114490.0,0.92986447]
[1754250513269,0.3608,114500.0,114490.0,1.19706447]
[1754250513668,0.5354776,114500.0,114490.0,1.19706447]
[1754250517475,0.3608,114500.0,114490.0,1.19706447]
[1754250518370,0.5354738,114510.0,114500.0,0.3545578]
[1754250518577,0.5354738,114510.0,114500.0,0.92633947]
[1754250518578,0.3608,114510.0,114500.0,0.92633947]
[1754250518968,0.3608,114510.0,114500.0,1.03571843]
[1754250519170,0.6471385,114520.0,114510.0,0.3876025]
[1754250519375,0.5354473,114520.0,114510.0,0.3876025]
[1754250520578,0.5354473,114520.0,114510.0,0.3886025]
[1754250521377,0.3608,114520.0,114510.0,0.3886025]
[1754250521572,0.3608,114520.0,114510.0,0.92732417]
[1754250521779,0.559793,114530.0,114520.0,0.2565572]
[1754250522077,0.559793,114530.0,114520.0,0.3818972]
[1754250522276,0.38515,114530.0,114520.0,0.92061887]
[1754250522471,0.3608,114530.0,114520.0,0.92061887]
[1754250523076,0.3618,114530.0,114520.0,0.92061887]
[1754250523475,0.3628,114530.0,114520.0,0.92061887]
[1754250523884,0.002,114530.0,114520.0,0.92061887]
[1754250524082,0.001,114530.0,114520.0,0.92061887]
[1754250524281,0.644358,114540.0,114530.0,0.381882]
[1754250524476,0.283558,114540.0,114530.0,0.381882]
[1754250524877,0.644358,114540.0,114530.0,0.381882]
[1754250525179,0.644358,114540.0,114530.0,0.39560237]
[1754250525773,0.645358,114540.0,114530.0,0.39560237]
[1754250526074,0.645358,114540.0,114530.0,0.66232237]
[1754250526276,0.646358,114540.0,114530.0,0.66232237]
[1754250532589,1.20041967,114540.0,114530.0,0.48769037]
[1754250533391,1.20041967,114540.0,114530.0,0.39615037]
[1754250534681,1.20041967,114540.0,114530.0,0.45158037]
[1754250534881,1.20041967,114540.0,114530.0,0.48769037]
[1754250539089,1.20041967,114540.0,114530.0,0.66232237]
[1754250540799,1.20041967,114540.0,114530.0,0.48769037]
[1754250542493,0.661698,114540.0,114530.0,0.48769037]
[1754250542693,1.20041967,114540.0,114530.0,0.48769037]
[1754250543397,1.20041967,114540.0,114530.0,0.28036037]
[1754250543586,1.20041967,114540.0,114530.0,0.01372037]
[1754250543889,0.196252,114530.0,114520.0,0.60213852]
[1754250544092,1.11111367,114530.0,114520.0,0.36929852]
[1754250544299,1.11111367,114530.0,114520.0,0.63593852]
[1754250544796,1.11111367,114530.0,114520.0,0.65927852]
[1754250544997,1.11111367,114530.0,114520.0,0.78600852]
[1754250545397,1.11111367,114530.0,114520.0,0.78700852]
[1754250545594,0.572392,114530.0,114520.0,0.78700852]
[1754250545795,1.11111367,114530.0,114520.0,0.51980852]
[1754250545995,1.11111367,114530.0,114520.0,0.54318852]
[1754250546898,1.11111367,114530.0,114520.0,0.55655638]
[1754250548897,1.11111367,114530.0,114520.0,0.11646638]
[1754250549101,1.11111367,114530.0,114520.0,0.08266638]
[1754250553091,1.11111367,114530.0,114520.0,0.11667638]
[1754250554900,1.11111367,114530.0,114520.0,0.08266638]
[1754250556601,1.11111367,114530.0,114520.0,0.06929852]
[1754250556793,1.38328093,114530.0,114520.0,0.05522852]
[1754250557096,1.38328093,114530.0,114520.0,0.001]
[1754250557301,1.9220026,114530.0,114520.0,0.001]
[1754250557802,0.1746472,114520.0,114510.0,0.01349057]
[1754250558007,0.1746472,114520.0,114500.0,0.03401]
[1754250558008,0.1746625,114510.0,114500.0,0.03401]
[1754250558208,1.07418417,114510.0,114500.0,0.03401]
[1754250558699,0.1746777,114500.0,114490.0,0.17088513]
[1754250558906,1.07419937,114500.0,114490.0,0.22630513]
[1754250559701,1.07419937,114500.0,114490.0,0.11773]
[1754250560203,1.07419937,114500.0,114490.0,0.01380503]
[1754250560399,0.1746929,114490.0,114480.0,0.05861]
[1754250560593,1.07421457,114490.0,114480.0,0.11403]
[1754250560798,1.07421457,114490.0,114480.0,0.16989]
[1754250560997,1.07321457,114490.0,114480.0,0.20715]
[1754250561805,1.07321457,114490.0,114480.0,0.20915]
[1754250562207,1.07321457,114490.0,114480.0,0.03701]
[1754250562908,1.07321457,114490.0,114480.0,0.03601]
[1754250563702,1.07421457,114490.0,114480.0,0.03401]
[1754250564001,1.07521457,114490.0,114480.0,0.03401]
[1754250565911,0.5364929,114490.0,114480.0,0.03401]
[1754250566303,1.07521457,114490.0,114480.0,0.03401]
[1754250579920,0.71441457,114490.0,114480.0,0.03401]
[1754250580127,1.43601457,114490.0,114480.0,0.03401]
[1754250583333,1.45824803,114490.0,114480.0,0.03401]
[1754250587637,0.73664803,114490.0,114480.0,0.03401]
[1754250587936,1.45824803,114490.0,114480.0,0.03401]
[1754250590939,0.1747082,114480.0,114470.0,0.04611776]
[1754250591134,0.5355082,114480.0,114470.0,0.16068776]
[1754250591444,0.5355082,114480.0,114470.0,0.21637776]
[1754250591737,0.5355082,114480.0,114470.0,0.39110116]
[1754250593539,0.5355082,114480.0,114470.0,0.21637776]
[1754250593540,1.07422987,114480.0,114470.0,0.21637776]
[1754250596632,1.74786572,114480.0,114470.0,0.21637776]
[1754250598932,1.74786572,114480.0,114470.0,0.39110116]
[1754250599736,1.74786572,114480.0,114470.0,0.21637776]
[1754250605641,1.74786572,114480.0,114470.0,0.18065776]
[1754250607450,1.74786572,114480.0,114470.0,0.21637776]
[1754250610860,1.74786572,114480.0,114470.0,0.01284776]
[1754250611051,0.5355082,114480.0,114470.0,0.03145]
[1754250611248,1.74786572,114480.0,114470.0,0.03145]
[1754250615661,1.74786572,114480.0,114470.0,0.11246]
[1754250615956,1.74786572,114480.0,114470.0,0.21355438]
[1754250617163,1.74786572,114480.0,114470.0,0.17972438]
[1754250617663,1.74786572,114480.0,114470.0,0.12525438]
[1754250620466,1.74786572,114480.0,114470.0,0.21355438]
[1754250622267,1.74786572,114480.0,114470.0,0.21455438]
[1754250623069,1.74786572,114480.0,114470.0,0.21555438]
[1754250626566,2.10866572,114480.0,114470.0,0.21555438]
[1754250634573,2.10866572,114480.0,114470.0,0.21455438]
[1754250634777,2.10866572,114480.0,114470.0,0.21355438]
[1754250635568,2.10866572,114480.0,114470.0,0.12525438]
[1754250636275,2.10866572,114480.0,114470.0,0.04424438]
[1754250646080,2.10866572,114480.0,114470.0,0.01279438]
[1754250646380,2.10866572,114480.0,114470.0,0.03147]
[1754250646881,0.1747233,114470.0,114460.0,0.0870006]
[1754250647079,1.74788082,114470.0,114460.0,0.0750992]
[1754250647477,1.83939774,114470.0,114460.0,0.0750992]
[1754250647981,1.83939774,114470.0,114460.0,0.0760992]
[1754250648883,1.83939774,114470.0,114460.0,0.0750992]
[1754250650984,1.84039774,114470.0,114460.0,0.0750992]
[1754250651283,1.84139774,114470.0,114460.0,0.0750992]
[1754250651878,1.23521898,114470.0,114460.0,0.0750992]
[1754250654074,1.84139774,114470.0,114460.0,0.0750992]
[1754250654480,1.23521898,114470.0,114460.0,0.0750992]
[1754250655082,1.23521898,114470.0,114460.0,0.1065692]
[1754250657795,1.84139774,114470.0,114460.0,0.1065692]
[1754250657994,1.84139774,114470.0,114460.0,0.0750992]
[1754250659294,0.1747466,114450.0,114440.0,0.03147]
[1754250659490,2.10870412,114450.0,114440.0,0.03147]
[1754250660796,2.10870412,114450.0,114440.0,0.05325]
[1754250661390,0.3058394,114440.0,114430.0,0.03147]
[1754250661590,1.27181816,114440.0,114430.0,0.03147]
[1754250661795,1.27081816,114440.0,114430.0,0.08782]
[1754250661993,1.27081816,114440.0,114430.0,0.26168643]
[1754250662196,0.1748076,114410.0,114400.0,0.05325]
[1754250662403,1.14178636,114410.0,114400.0,0.97227166]
[1754250662704,1.14178636,114410.0,114400.0,0.3660929]
[1754250662899,1.14178636,114410.0,114400.0,0.97227166]
[1754250663101,1.13978636,114410.0,114400.0,0.97227166]
[1754250663603,1.13878636,114410.0,114400.0,0.97227166]
[1754250663995,1.13878636,114410.0,114400.0,0.3660929]
[1754250664196,0.5326076,114410.0,114400.0,0.3660929]
[1754250664398,1.13878636,114410.0,114400.0,0.3680929]
[1754250664701,1.13878636,114410.0,114400.0,0.3700929]
[1754250665491,1.13878636,114410.0,114400.0,0.3690929]
[1754250665694,0.5326076,114410.0,114400.0,0.3690929]
[1754250665896,1.13878636,114410.0,114400.0,0.98722866]
[1754250666101,0.5326076,114410.0,114400.0,1.05790839]
[1754250666406,1.27288816,114420.0,114410.0,0.3660776]
[1754250667801,1.27288816,114420.0,114410.0,0.3670776]
[1754250668204,1.27288816,114420.0,114410.0,0.3680776]
[1754250668606,0.6667094,114420.0,114410.0,0.3680776]
[1754250668902,1.27288816,114420.0,114410.0,0.3680776]
[1754250669500,0.86838686,114420.0,114410.0,0.3680776]
[1754250669802,0.78098426,114420.0,114410.0,0.97425636]
[1754250671308,0.78098426,114420.0,114410.0,0.19327]
[1754250671801,1.38716302,114420.0,114410.0,0.002]
[1754250672004,1.38716302,114420.0,114380.0,0.10937896]
[1754250672005,0.1748382,114390.0,114380.0,0.10937896]
[1754250672198,2.10879572,114390.0,114380.0,0.03202]
[1754250672902,0.8964382,114390.0,114380.0,0.19561]
[1754250673102,1.50261696,114390.0,114380.0,0.19561]
[1754250673303,2.10879572,114390.0,114380.0,0.19561]
[1754250673498,2.10879572,114390.0,114370.0,0.00523034]
[1754250673499,0.1748505,114380.0,114370.0,0.03725034]
[1754250673806,1.14182926,114380.0,114370.0,0.12770427]
[1754250674012,1.74800802,114380.0,114370.0,0.01689427]
[1754250674305,1.74800802,114380.0,114370.0,0.07567225]
[1754250674502,1.74800802,114380.0,114370.0,0.00523034]
[1754250674703,1.07558215,114380.0,114370.0,0.00523034]
[1754250675207,1.07558215,114380.0,114370.0,0.03725034]
[1754250675605,1.07558215,114380.0,114370.0,0.04916524]
[1754250675812,1.07558215,114380.0,114370.0,0.05016524]
[1754250676003,1.07558215,114380.0,114370.0,0.33876224]
[1754250676203,0.5356505,114380.0,114370.0,0.38862224]
[1754250676399,0.1748505,114380.0,114370.0,0.38862224]
[1754250676711,0.71478215,114380.0,114370.0,0.38762224]
[1754250676907,0.1788505,114380.0,114370.0,0.38762224]
[1754250677107,0.71878215,114380.0,114370.0,0.38762224]
[1754250678000,0.71578215,114380.0,114370.0,0.38762224]
[1754250678306,0.001,114380.0,114370.0,0.38762224]
[1754250678508,0.001,114380.0,114370.0,0.45633212]
[1754250679105,0.4045057,114400.0,114390.0,0.2185426]
[1754250679106,0.3608,114400.0,114390.0,0.2185426]
[1754250679315,0.1748053,114410.0,114400.0,0.3704306]
[1754250679501,0.1748053,114410.0,114400.0,0.7312306]
[1754250679705,1.20663995,114420.0,114410.0,0.2535953]
[1754250679911,1.16293885,114420.0,114410.0,0.3704153]
[1754250680106,0.80213885,114420.0,114410.0,0.3704153]
[1754250681109,1.16293885,114420.0,114410.0,0.3704153]
[1754250681811,1.16293885,114420.0,114410.0,0.19561]
[1754250682515,1.16293885,114420.0,114410.0,0.3704148]
[1754250682708,0.80513885,114420.0,114410.0,0.3704148]
[1754250682909,1.16593885,114420.0,114410.0,0.3704148]
[1754250684011,0.80513885,114420.0,114410.0,0.19561]
[1754250684312,1.16593885,114420.0,114410.0,0.19561]
[1754250684714,0.80513885,114420.0,114410.0,0.19561]
[1754250684914,0.2652072,114420.0,114410.0,0.19561]
[1754250685110,0.2652072,114420.0,114410.0,0.7312148]
[1754250685307,0.2712072,114420.0,114410.0,0.7312148]
[1754250686611,0.2712072,114420.0,114410.0,0.3704148]
[1754250688618,0.81113885,114420.0,114410.0,0.3704148]
[1754250690520,0.81113885,114420.0,114410.0,0.19561]
[1754250692422,0.81113885,114420.0,114410.0,0.7312099]
[1754250692723,0.1838052,114420.0,114410.0,0.7312099]
[1754250692921,0.009,114420.0,114410.0,1.71314155]
[1754250694322,0.009,114420.0,114410.0,2.21314155]
[1754250694723,0.009,114420.0,114410.0,1.6732099]
[1754250695118,0.009,114420.0,114410.0,2.21314155]
[1754250695422,0.003,114420.0,114410.0,2.21314155]
[1754250695622,0.2621552,114430.0,114420.0,0.1747846]
[1754250695818,0.2621552,114430.0,114420.0,0.9978346]
[1754250696526,0.2621552,114430.0,114420.0,1.2650346]
[1754250697323,0.2631552,114430.0,114420.0,1.2650346]
[1754250698022,0.001,114430.0,114420.0,1.80496625]
[1754250698220,0.1757693,114430.0,114420.0,1.80496625]
[1754250698725,0.1757693,114430.0,114420.0,1.2650346]
[1754250700523,0.71570095,114430.0,114420.0,1.2650339]
[1754250702223,0.71570095,114430.0,114420.0,1.09025]
[1754250702429,0.71570095,114430.0,114420.0,0.46225]
[1754250703426,0.71570095,114430.0,114420.0,0.6370342]
[1754250705622,0.71570095,114430.0,114420.0,0.46225]
[1754250705830,0.71570095,114430.0,114420.0,0.11081]
[1754250706122,1.07650095,114430.0,114420.0,0.03202]
[1754250707123,0.5365693,114430.0,114420.0,0.03202]
[1754250707330,1.07650095,114430.0,114420.0,0.03202]
[1754250708226,0.1747842,114420.0,114410.0,0.64335]
[1754250708431,0.71471585,114420.0,114410.0,0.46309]
[1754250709925,0.71471585,114420.0,114410.0,0.46409]
[1754250711624,1.07551585,114420.0,114410.0,0.29885]
[1754250712024,1.07551585,114420.0,114410.0,0.40743]
[1754250712331,1.07551585,114420.0,114410.0,0.46509]
[1754250712524,1.07551585,114420.0,114410.0,0.19869]
[1754250712718,1.07551585,114420.0,114410.0,0.001]
[1754250712923,1.07551585,114420.0,114410.0,0.03245]
[1754250713727,1.07551585,114420.0,114410.0,0.03145]
[1754250716133,1.07551585,114420.0,114410.0,0.03245]
[1754250716727,1.07551585,114420.0,114410.0,0.03145]
[1754250716931,1.07651585,114420.0,114410.0,0.03145]
[1754250717930,0.1748149,114400.0,114390.0,0.65835729]
[1754250718130,0.71474655,114400.0,114390.0,0.48353949]
[1754250718328,0.71474655,114400.0,114390.0,0.65836969]
[1754250719429,0.71474655,114400.0,114390.0,0.66136969]
[1754250719631,0.1748149,114400.0,114390.0,0.66136969]
[1754250719831,0.2185156,114410.0,114400.0,0.3715049]
[1754250720032,0.1748149,114410.0,114400.0,1.27223655]
[1754250720232,0.1748149,114410.0,114400.0,1.53943655]
[1754250721529,0.262167,114430.0,114420.0,0.2530839]
[1754250721739,0.2621438,114440.0,114430.0,0.3714587]
[1754250722425,0.2621438,114440.0,114430.0,0.44117854]
[1754250722832,0.2621438,114440.0,114430.0,0.4603682]
[1754250723235,0.2621438,114440.0,114430.0,0.4745803]
[1754250723541,0.2621438,114440.0,114430.0,0.8353803]
[1754250725238,0.80207545,114440.0,114430.0,0.8353803]
[1754250725739,0.80207545,114440.0,114430.0,0.6606116]
[1754250725939,0.80207545,114440.0,114430.0,0.8353803]
[1754250726143,0.2621438,114440.0,114430.0,0.8353803]
[1754250726444,0.80207545,114440.0,114430.0,0.8353803]
[1754250728944,0.80207545,114440.0,114430.0,0.6606116]
[1754250729344,0.80207545,114440.0,114430.0,0.2998116]
[1754250729643,1.16287545,114440.0,114430.0,0.2998116]
[1754250731652,1.16287545,114440.0,114430.0,0.1345716]
[1754250731946,1.7028071,114440.0,114430.0,0.11642194]
[1754250733650,1.7048071,114440.0,114430.0,0.11642194]
[1754250734349,1.7078071,114440.0,114430.0,0.11642194]
[1754250735046,0.6279438,114440.0,114430.0,0.24734194]
[1754250735348,0.6279438,114440.0,114430.0,0.28033194]
[1754250735349,1.16787545,114440.0,114430.0,0.28033194]
[1754250735747,1.16787545,114440.0,114430.0,0.24734194]
[1754250736049,1.7068071,114440.0,114430.0,0.03249]
[1754250736245,1.7068071,114440.0,114430.0,0.11744607]
[1754250737056,1.7048071,114440.0,114430.0,0.11744607]
[1754250738842,1.7038071,114440.0,114430.0,0.11744607]
[1754250739049,1.7048071,114440.0,114430.0,0.11744607]
[1754250739243,1.7048071,114440.0,114430.0,0.16130607]
[1754250741749,1.7048071,114440.0,114430.0,0.21378607]
[1754250743448,1.7048071,114440.0,114430.0,0.16130607]
[1754250744550,1.7048071,114440.0,114430.0,0.11744607]
[1754250750652,1.7048071,114440.0,114430.0,0.08495607]
[1754250750851,1.7048071,114440.0,114430.0,0.03249]
[1754250751448,1.7048071,114440.0,114430.0,0.10712]
[1754250751644,1.7048071,114440.0,114430.0,0.1964]
[1754250752050,1.7048071,114440.0,114430.0,0.21386962]
[1754250752255,1.7038071,114440.0,114430.0,0.21386962]
[1754250752555,1.7028071,114440.0,114430.0,0.21386962]
[1754250753954,1.7038071,114440.0,114430.0,0.21386962]
[1754250754652,1.7038071,114440.0,114430.0,0.2831411]
[1754250760458,1.7038071,114440.0,114430.0,0.1976711]
[1754250762068,1.7038071,114440.0,114430.0,0.1192311]
[1754250764966,1.7038071,114440.0,114430.0,0.06927148]
[1754250765165,0.1747838,114420.0,114410.0,0.13972896]
[1754250765468,1.07551545,114420.0,114410.0,0.03035]
[1754250766170,1.07551545,114420.0,114410.0,0.04746698]
[1754250766469,1.07551545,114420.0,114410.0,0.04846698]
[1754250767369,1.07551545,114420.0,114410.0,0.04746698]
[1754250768266,1.07551545,114420.0,114410.0,0.01711698]
[1754250768480,1.07551545,114420.0,114410.0,0.03035]
[1754250769662,1.07751545,114420.0,114410.0,0.03035]
[1754250769866,1.07751545,114420.0,114410.0,0.04769862]
[1754250770074,1.07851545,114420.0,114410.0,0.04769862]
[1754250774875,1.07851545,114420.0,114410.0,0.03035]
[1754250776078,1.07851545,114420.0,114410.0,0.04763901]
[1754250779180,1.07651545,114420.0,114410.0,0.04763901]
[1754250780481,1.07551545,114420.0,114410.0,0.04763901]
[1754250786481,1.07551545,114420.0,114410.0,0.04896507]
[1754250787977,1.07551545,114420.0,114410.0,0.04947199]
[1754250793187,1.07551545,114420.0,114410.0,0.03218298]
[1754250794587,1.07551545,114420.0,114410.0,0.04942186]
[1754250794776,1.74951676,114420.0,114410.0,0.04942186]
[1754250796688,1.74951676,114420.0,114410.0,0.03218298]
[1754250797289,1.74951676,114420.0,114410.0,0.04942531]
[1754250798083,1.74951676,114420.0,114410.0,0.03218298]
[1754250800686,1.74951676,114420.0,114410.0,0.04937863]
[1754250801592,0.5355838,114420.0,114410.0,0.04937863]
[1754250801891,1.74951676,114420.0,114410.0,0.04937863]
[1754250803995,1.74951676,114420.0,114410.0,0.03218298]
[1754250806798,1.74951676,114420.0,114410.0,0.00183298]
[1754250807006,0.174799,114410.0,114400.0,0.0492369]
[1754250807202,1.74953196,114410.0,114400.0,0.0492369]
[1754250808300,0.1748296,114390.0,114380.0,0.95159531]
[1754250808602,1.38876256,114390.0,114380.0,1.02946531]
[1754250808902,1.38876256,114390.0,114380.0,1.06105531]
[1754250809302,1.38876256,114390.0,114380.0,1.17043427]
[1754250810103,0.1748449,114380.0,114370.0,0.48287842]
[1754250810412,1.14261138,114380.0,114370.0,0.39492851]
[1754250810601,1.14261138,114380.0,114370.0,0.28478031]
[1754250810799,1.14061138,114380.0,114370.0,0.28478031]
[1754250811601,1.14061138,114380.0,114370.0,0.28578031]
[1754250811804,1.74757786,114380.0,114370.0,0.12219031]
[1754250812203,1.74757786,114380.0,114370.0,0.12519031]
[1754250812606,1.14061138,114380.0,114370.0,0.12519031]
[1754250813213,1.14061138,114380.0,114370.0,0.12219031]
[1754250813411,1.14061138,114380.0,114370.0,0.22914031]
[1754250813708,1.14261138,114380.0,114370.0,0.28478031]
[1754250814604,1.14461138,114380.0,114370.0,0.28478031]
[1754250815412,1.14461138,114380.0,114370.0,0.19906031]
[1754250817409,1.14461138,114380.0,114370.0,0.14242031]
[1754250817912,1.14461138,114380.0,114370.0,0.28478031]
[1754250820813,1.14461138,114380.0,114370.0,0.19906031]
[1754250821213,1.14461138,114380.0,114370.0,0.07394022]
[1754250821214,1.75157786,114380.0,114370.0,0.07394022]
[1754250821413,1.75157786,114380.0,114370.0,0.10389022]
[1754250821914,1.75157786,114380.0,114370.0,0.10508151]
[1754250822412,1.75157786,114380.0,114370.0,0.07513151]
[1754250822814,0.5376449,114380.0,114370.0,0.07513151]
[1754250823014,1.75157786,114380.0,114370.0,0.10508151]
[1754250823409,1.75157786,114380.0,114370.0,0.02808141]
[1754250823614,1.75157786,114380.0,114370.0,0.03114129]
[1754250824611,1.07758233,114380.0,114370.0,0.03114129]
[1754250826914,1.07758233,114380.0,114370.0,0.19117129]
[1754250827508,1.07758233,114380.0,114370.0,0.10766129]
[1754250827816,1.07758233,114380.0,114370.0,0.07272129]
[1754250828207,1.07758233,114380.0,114370.0,0.05283129]
[1754250828810,1.07758233,114380.0,114370.0,0.03114129]
[1754250830920,0.1748601,114370.0,114360.0,0.02995]
[1754250831214,1.61553496,114370.0,114360.0,0.02995]
[1754250833823,1.07559753,114370.0,114360.0,0.02995]
[1754250834724,1.61553496,114370.0,114360.0,0.02995]
[1754250836927,1.97633496,114370.0,114360.0,0.02995]
[1754250839125,2.00010387,114370.0,114360.0,0.02995]
[1754250842528,0.92022901,114370.0,114360.0,0.02995]
[1754250842825,2.00010387,114370.0,114360.0,0.02995]
[1754250844628,2.13520551,114370.0,114360.0,0.10647]
[1754250844823,2.13520551,114370.0,114360.0,0.18998]
[1754250845531,0.92022901,114370.0,114360.0,0.18998]
[1754250846034,2.13520551,114370.0,114360.0,0.18998]
[1754250846733,0.55942901,114370.0,114360.0,0.3648554]
[1754250846928,1.14314835,114370.0,114360.0,0.3648554]
[1754250847730,1.14314835,114370.0,114360.0,0.18998]
[1754250848331,1.14314835,114370.0,114360.0,0.3648554]
[1754250848530,1.14314835,114370.0,114360.0,0.18998]
[1754250848721,1.07548581,114370.0,114360.0,0.18998]
[1754250848923,1.07548581,114370.0,114360.0,0.3648554]
[1754250849931,0.71468581,114370.0,114360.0,0.3648554]
[1754250851834,0.71468581,114370.0,114360.0,0.18998]
[1754250853129,0.71468581,114370.0,114360.0,0.3648554]
[1754250854330,0.1748601,114370.0,114360.0,0.3648554]
[1754250855222,0.1748601,114370.0,114360.0,0.6320554]
[1754250855426,0.1748601,114370.0,114360.0,0.80693539]
[1754250856931,0.71468581,114370.0,114360.0,0.80693539]
[1754250857537,0.71468581,114370.0,114360.0,0.80795085]
[1754250859235,0.71468581,114370.0,114360.0,0.54075085]
[1754250859634,0.71468581,114370.0,114360.0,0.90155085]
[1754250860435,0.1748601,114370.0,114360.0,0.90155085]
[1754250860635,0.71468581,114370.0,114360.0,0.90155085]
[1754250860937,0.1748601,114370.0,114360.0,0.90155085]
[1754250861629,0.1748601,114370.0,114360.0,0.72667086]
[1754250861829,0.71468581,114370.0,114360.0,0.72667086]
[1754250863037,0.71468581,114370.0,114360.0,0.72768632]
[1754250864133,0.71468581,114370.0,114360.0,0.7256554]
[1754250864336,0.71468581,114370.0,114360.0,0.72786215]
[1754250865134,0.71468581,114370.0,114360.0,0.99506215]
[1754250867939,0.71468581,114370.0,114360.0,0.72786215]
[1754250868134,0.71468581,114370.0,114360.0,0.72886215]
[1754250868848,0.71468581,114370.0,114360.0,0.72986215]
[1754250870335,0.71468581,114370.0,114360.0,0.73087789]
[1754250871242,0.71468581,114370.0,114360.0,0.73105344]
[1754250872149,0.71468581,114370.0,114360.0,0.73005344]
[1754250872348,0.71468581,114370.0,114360.0,0.73105344]
[1754250872750,0.71468581,114370.0,114360.0,0.73005344]
[1754250872949,0.71468581,114370.0,114360.0,0.73105344]
[1754250874154,0.71468581,114370.0,114360.0,0.73005344]
[1754250874344,0.71468581,114370.0,114360.0,0.73105344]
[1754250874851,0.1748601,114370.0,114360.0,0.73105344]
[1754250876954,0.1748601,114370.0,114360.0,0.99825344]
[1754250877255,0.1748601,114370.0,114360.0,0.9983887]
[1754250877656,0.71468581,114370.0,114360.0,0.9983887]
[1754250878155,0.71468581,114370.0,114360.0,0.9948554]
[1754250878455,0.71468581,114370.0,114360.0,1.26560091]
[1754250886662,0.78210401,114370.0,114360.0,1.26560091]
[1754250887265,0.78210401,114370.0,114360.0,1.87284482]
[1754250888666,0.1748601,114370.0,114360.0,1.26560091]
[1754250889662,0.71456863,114370.0,114360.0,1.26560091]
[1754250903177,0.1748601,114370.0,114360.0,1.26560091]
[1754250903377,0.71456863,114370.0,114360.0,1.26560091]
[1754250910873,0.78208046,114370.0,114360.0,1.26560091]
[1754250911487,0.78208046,114370.0,114360.0,0.99940091]
[1754250911786,0.78208046,114370.0,114360.0,1.26552091]
[1754250913081,0.78208046,114370.0,114360.0,0.30369551]
[1754250913082,1.38930082,114370.0,114360.0,0.30369551]
[1754250913274,1.75010082,114370.0,114360.0,0.27476087]
[1754250913476,1.75010082,114370.0,114360.0,0.30272087]
[1754250914680,1.0756541,114370.0,114360.0,0.30272087]
[1754250915187,1.0756541,114370.0,114360.0,0.30172087]
[1754250916889,1.0756541,114370.0,114360.0,0.30072087]
[1754250917085,1.0756541,114370.0,114360.0,0.30172087]
[1754250917788,1.0756541,114370.0,114360.0,0.30072087]
[1754250918389,0.5356601,114370.0,114360.0,0.03352087]
[1754250918589,1.0756541,114370.0,114360.0,0.03352087]
[1754250919295,0.5356601,114370.0,114360.0,0.03352087]
[1754250919484,1.0756541,114370.0,114360.0,0.00556087]
[1754250919794,1.0756541,114370.0,114360.0,0.03352087]
[1754250921284,0.1748754,114360.0,114350.0,0.11197365]
[1754250921601,1.6156634,114360.0,114350.0,0.20976365]
[1754250923194,1.6156634,114360.0,114350.0,0.23032365]
[1754250923394,1.6156634,114360.0,114350.0,0.26368365]
[1754250924704,1.6156634,114360.0,114350.0,0.26468365]
[1754250927009,1.6156634,114360.0,114350.0,0.11397365]
[1754250927814,0.5356754,114360.0,114350.0,0.11397365]
[1754250928307,1.6156634,114360.0,114350.0,0.11397365]
[1754250928509,0.5356754,114360.0,114350.0,0.11397365]
[1754250928709,0.5356754,114360.0,114350.0,0.26468365]
[1754250928902,1.0756694,114360.0,114350.0,0.26468365]
[1754250929610,1.0756694,114360.0,114350.0,0.18703365]
[1754250930512,1.0756694,114360.0,114350.0,0.26468365]
[1754250931309,1.6156634,114360.0,114350.0,0.26468365]
[1754250932113,0.5356754,114360.0,114350.0,0.43957425]
[1754250932315,0.1748754,114360.0,114350.0,0.80037425]
[1754250933207,0.1748754,114360.0,114350.0,0.43957425]
[1754250933512,0.7148694,114360.0,114350.0,0.43957425]
[1754250933912,0.7148694,114360.0,114350.0,0.26468365]
[1754250934113,0.7148694,114360.0,114350.0,0.43957425]
[1754250935214,0.7148694,114360.0,114350.0,0.80037425]
[1754250936516,0.7148694,114360.0,114350.0,0.43957425]
[1754250938311,0.7148694,114360.0,114350.0,0.80037425]
[1754250942731,0.78218805,114360.0,114350.0,0.80037425]
[1754250945427,0.78218805,114360.0,114350.0,1.06645425]
[1754250947723,0.78218805,114360.0,114350.0,0.89156365]
[1754250947931,0.78218805,114360.0,114350.0,0.53076365]
[1754250952733,0.78218805,114360.0,114350.0,0.70565425]
[1754250953427,0.1748754,114360.0,114350.0,0.70565425]
[1754250953728,0.78218805,114360.0,114350.0,0.70565425]
[1754250954630,0.1748754,114360.0,114350.0,0.70565425]
[1754250954933,0.78218805,114360.0,114350.0,0.70565425]
[1754250955124,0.78218805,114360.0,114350.0,0.53076365]
[1754250956631,1.3895007,114360.0,114350.0,0.53076365]
[1754250957232,0.78218805,114360.0,114350.0,0.53076365]
[1754250959335,0.78218805,114360.0,114350.0,0.70565435]